{"text_format":"3","workbook":"xlsx","n_sheets":7,"sheets":["5 класс","6 класс","7 класс","8 класс","9 класс","10 класс","11 класс"],"not_rendered":{"defined_names":7},"read":"whole","date_system":"1900"}

{"sheet":"5 класс","index":0,"n_rows":38,"n_cols":8,"rows_kept":38,"merged":[[0,1,0,3]]}
[null,"5 класс Биология (школьный этап)"]
[null,"ФАМИЛИЯ Имя и Отчество участника","школа ","баллы","%","ФИО учителя","макс кол-во баллов ",25]
["победитель","Гарунов Владимир Александрович","МБОУ \"Коношеозерская СШ им. В.А.Корытова\"",20.1,{"$f":"D3*100/25","v":{"v":80.4,"d":"80"}},"Марчук Л.В."]
["победитель","Яковлева Дарья Юрьевна","МБОУ \"Вохтомская ОШ\" СП \"Волошская ОШ\"",15.2,61,"Ильина Г.А."]
["победитель","Волощенко Николай Сергеевич","МБОУ \"Коношская СШ имени Н.П. Лавёрова\"",15,{"$f":"D5*100/25","v":60},"Шубина Елена Борисовна"]
["призер","Воронин Вадим Алексеевич","МБОУ \"Коношская СШ имени Н.П. Лавёрова\"",15,60,"Шубина Елена Борисовна"]
["пеобедитель","Мачаликашвили Айшат Мовсаровна","МБОУ \"Подюжская СШ им. В.А. Абрамова\"",15,60,"Краева Е.П."]
["призер","Лукина Мария Алексеевна","МБОУ \"Коношская СШ имени Н.П. Лавёрова\"",14.8,{"v":59.2,"d":"59"},"Шубина Елена Борисовна"]
["призер","Саврасов Иван Романович","МБОУ \"Коношская СШ имени Н.П. Лавёрова\"",14.5,58,"Шубина Елена Борисовна"]
["призер","Сандул Дарья Ивановна","МБОУ \"Коношеозерская СШ им. В.А.Корытова\"",14.5,58,"Марчук Л.В."]
["призер","Серков Марк Янович","МБОУ \"Коношеозерская СШ им. В.А.Корытова\"",13,52,"Марчук Л.В."]
["призер","Андреев Илья Алексеевич","МБОУ \"Коношская СШ имени Н.П. Лавёрова\"",12.5,50,"Шубина Елена Борисовна"]
["призер","Иващко Саша Владимирович","МБОУ \"Коношская СШ имени Н.П. Лавёрова\"",11.5,46,"Шубина Елена Борисовна"]
["призер","Левачев Дмитрий Эдуардович ","МБОУ \"Коношская ОШ\"",11.2,{"v":44.8,"d":"45"},"Вараксина Ю.А."]
["участник","Андреев Максим Алексеевич","МБОУ \"Коношская СШ имени Н.П. Лавёрова\"",10.8,{"v":43.2,"d":"43"},"Шубина Елена Борисовна"]
["участник","Бова Александра Анатольевна","МБОУ \"Коношеозерская СШ им. В.А.Корытова\"",9.8,{"v":39.2,"d":"39"},"Марчук Л.В."]
["участник","Сархадова Мария Валерьевна","МБОУ \"Подюжская СШ им. В.А. Абрамова\"",9.8,{"v":39.2,"d":"39"},"Краева Е.П."]
["участник","Кишкина Дарья Олеговна","МБОУ \"Вохтомская ОШ\"",9.8,{"v":39.2,"d":"39"},"Артемова Н.П."]
["участник","Власова Мария Игоревна","МБОУ \"Коношская СШ имени Н.П. Лавёрова\"",9.4,{"v":37.6,"d":"38"},"Шубина Елена Борисовна"]
["участник","Кузнецова София Артемовна","МБОУ \"Коношская СШ имени Н.П. Лавёрова\"",9.1,{"v":36.4,"d":"36"},"Шубина Елена Борисовна"]
["участник","Торопова София Викторовна","МБОУ \"Коношская СШ имени Н.П. Лавёрова\"",9,36,"Шубина Елена Борисовна"]
["участник","Скурихина Кира Андреевна","МБОУ \"Коношская СШ имени Н.П. Лавёрова\"",8.8,{"v":35.2,"d":"35"},"Шубина Елена Борисовна"]
["участник","Кожемякин Андрей Иванович","МБОУ \"Коношская СШ имени Н.П. Лавёрова\"",8.5,34,"Шубина Елена Борисовна"]
["участник","Тарасов Георгий Александрович","МБОУ \"Ерцевская СШ им. С.И. Бочарова\"",8.5,34,"Рубайло О.А."]
["участник","Бормотова Маргарита Владимировна","МБОУ \"Ерцевская СШ им. С.И. Бочарова\"",8.1,{"v":32.4,"d":"32"},"Рубайло О.А."]
["участник","Кизяев Ярослав Сергеевич","МБОУ \"Коношская СШ имени Н.П. Лавёрова\"",8,32,"Шубина Елена Борисовна"]
["участник","Корчагина Виктория Сергеевна","МБОУ \"Ерцевская СШ им. С.И. Бочарова\"",7.7,{"v":30.8,"d":"31"},"Рубайло О.А."]
["участник","Оськина Алиса Олеговна","МБОУ \"Коношская СШ имени Н.П. Лавёрова\"",7.4,{"v":29.6,"d":"30"},"Шубина Елена Борисовна"]
["участник","Гезалова Лейла Исмаиловна","МБОУ \"Ерцевская СШ им. С.И. Бочарова\"",7.4,{"v":29.6,"d":"30"},"Рубайло О.А."]
["участник","Кириянов Сергей Сергеевич","МБОУ \"Ерцевская СШ им. С.И. Бочарова\"",6.4,{"v":25.6,"d":"26"},"Рубайло О.А."]
["участник","Цеповяз Диана Александровна","МБОУ \"Коношская СШ имени Н.П. Лавёрова\"",5.7,{"v":22.8,"d":"23"},"Шубина Елена Борисовна"]
["участник","Пашков Роман Артёмович","МБОУ \"Коношская СШ имени Н.П. Лавёрова\"",5.5,22,"Шубина Елена Борисовна"]
["участник","Колесов Антон Анатольевич","МБОУ \"Ерцевская СШ им. С.И. Бочарова\"",5.2,{"v":20.8,"d":"21"},"Рубайло О.А."]
["участник","Усанова Анастасия Александровна","МБОУ \"Подюжская СШ им. В.А. Абрамова\"",3.8,{"v":15.2,"d":"15"},"Краева Е.П."]
["участник","Сысоева Снежана Юрьевна","МБОУ \"Ерцевская СШ им. С.И. Бочарова\"",3.3,{"v":13.2,"d":"13"},"Рубайло О.А."]
["участник","Черепанова Варвара Андреевна","МБОУ \"Ерцевская СШ им. С.И. Бочарова\"",3.2,{"v":12.8,"d":"13"},"Рубайло О.А.",25]
["участник","Армашова Дарья Сергеевна","МБОУ \"Ерцевская СШ им. С.И. Бочарова\"",3,12,"Рубайло О.А."]
["участник","Сандул Дарья Ивановна","МБОУ \"Коношеозерская СШ им. В.А.Корытова\"",0,0,"Марчук Л.В.",25]

{"sheet":"6 класс","index":1,"n_rows":54,"n_cols":8,"rows_kept":54,"merged":[[0,1,0,3]]}
[null,"6 класс биология (школьный этап)"]
[null,"ФАМИЛИЯ Имя и Отчество участника","школа ","баллы","%","ФИО учителя","макс кол-во баллов ",25]
["победитель","Негодяев Семён Андреевич","МБОУ \"Коношеозерская СШ им. В.А.Корытова\"",19.8,{"$f":"D3*100/25","v":{"v":79.2,"d":"79"}},"Марчук Л.В."]
["призер","Павлова Кристина Николаевна","МБОУ \"Коношеозерская СШ им. В.А.Корытова\"",17.8,{"$f":"D4*100/25","v":{"v":71.2,"d":"71"}},"Марчук Л.В."]
["победитель","Евтушенко Ростислав Яковлевич","МБОУ \"Коношская СШ имени Н.П. Лавёрова\"",17,{"$f":"D5*100/25","v":68},"Шубина Елена Борисовна"]
["призер","Сорокин Сергей Юрьевич","МБОУ \"Коношеозерская СШ им. В.А.Корытова\"",16.6,{"$f":"D6*100/25","v":{"v":66.4,"d":"66"}},"Марчук Л.В."]
["победитель","Яковлева Мария Александровна","МБОУ \"Вохтомская ОШ\" СП \"Волошская ОШ\"",15.6,62,"Ильина Г.А."]
["призер","Лобинский Арсений Викторович","МБОУ \"Коношская СШ имени Н.П. Лавёрова\"",14.5,{"$f":"D8*100/25","v":58},"Носарева Татьяна Юрьевна"]
["призер","Егоров Павел Александрович","МБОУ \"Коношеозерская СШ им. В.А.Корытова\"",13.8,{"v":55.2,"d":"55"},"Марчук Л.В."]
["победитель","Аронова Лиана Васильевна","МБОУ \"Климовская СШ\"",13.8,{"v":55.2,"d":"55"},"Котова Н.С."]
["призер","Дыбина Мария Николаевна","МБОУ \"Коношская СШ имени Н.П. Лавёрова\"",13.5,54,"Носарева Татьяна Юрьевна"]
["призер","Виноградов Алексей Владимирович","МБОУ \"Вохтомская ОШ\"",12.4,{"v":49.6,"d":"50"},"Артемова Н.П."]
["призер","Воробьева София Валентиновна","МБОУ \"Коношская СШ имени Н.П. Лавёрова\"",12.1,{"v":48.4,"d":"48"},"Носарева Татьяна Юрьевна"]
["призер","Гергедава Анастасия Кахаевна","МБОУ \"Коношская СШ имени Н.П. Лавёрова\"",11.8,{"v":47.2,"d":"47"},"Шубина Елена Борисовна"]
["призер","Фрикликас Егор Максимович","МБОУ \"Ерцевская СШ им. С.И. Бочарова\"",11.8,{"v":47.2,"d":"47"},"Рубайло О.А."]
["призер","Юсупмурзина Полина Юрьевна","МБОУ \"Подюжская СШ им. В.А. Абрамова\"",11.6,{"v":46.4,"d":"46"},"Краева Е.П."]
["призер","Писарев Матвей Степанович","МБОУ \"Коношская СШ имени Н.П. Лавёрова\"",11.5,46,"Носарева Татьяна Юрьевна"]
["участник","Гуляева Ксения Максимовна","МБОУ \"Лесозаводская СШ\"",11.5,46,"Семенова Ольга Сергеевна"]
["участник","Гольцева Александра Андреевна","МБОУ \"Лесозаводская СШ\"",11.1,{"v":44.4,"d":"44"},"Семенова Ольга Сергеевна"]
["участник","Золотов Дмитрий Николаевич","МБОУ \"Ерцевская СШ им. С.И. Бочарова\"",11.1,{"v":44.4,"d":"44"},"Рубайло О.А."]
["участник","Чернышов Дмитрий Максимович","МБОУ \"Коношская СШ имени Н.П. Лавёрова\"",11,44,"Шубина Елена Борисовна"]
["участник","Виноградов Андрей Иванович","МБОУ \"Ерцевская СШ им. С.И. Бочарова\"",11,44,"Рубайло О.А."]
["участник","Бочаров Илья Александрович","МБОУ \"Ерцевская СШ им. С.И. Бочарова\"",10.8,{"v":43.2,"d":"43"},"Рубайло О.А."]
["участник","Афанасьев максим николаевич","МБОУ \"Коношская СШ имени Н.П. Лавёрова\"",10.5,42,"Шубина Елена Борисовна"]
["участник","Пирожкин павел Андреевич","МБОУ \"Коношеозерская СШ им. В.А.Корытова\"",10.5,42,"Марчук Л.В."]
["участник","Калмыков Владислав Дмитриевич","МБОУ \"Лесозаводская СШ\"",10.4,{"v":41.6,"d":"42"},"Семенова Ольга Сергеевна"]
["участник","Пузина Виктория Валерьевна","МБОУ \"Коношская СШ имени Н.П. Лавёрова\"",10,40,"Носарева Татьяна Юрьевна"]
["участник","Башкирев Алексей Николаевич","МБОУ \"Коношеозерская СШ им. В.А.Корытова\"",10,40,"Марчук Л.В."]
["участник","Куриченкова Варвара Максимовна","МБОУ \"Коношская СШ имени Н.П. Лавёрова\"",9.8,{"v":39.2,"d":"39"},"Шубина Елена Борисовна"]
["участник","Рыжков Артём Алексеевич","МБОУ \"Ерцевская СШ им. С.И. Бочарова\"",9.8,{"v":39.2,"d":"39"},"Рубайло О.А."]
["участник","Соколова Марина Алексеевна","МБОУ \"Ерцевская СШ им. С.И. Бочарова\"",9.8,{"v":39.2,"d":"39"},"Рубайло О.А."]
["участник","Тупота Андрей Викторович","МБОУ \"Коношская СШ имени Н.П. Лавёрова\"",9.5,38,"Шубина Елена Борисовна"]
["участник","Гурина Валерия Евгеньевна","МБОУ \"Ерцевская СШ им. С.И. Бочарова\"",9.5,38,"Рубайло О.А."]
["участник","Ивашов Роман Сергеевич","МБОУ \"Вохтомская ОШ\"",9.5,38,"Артемова Н.П."]
["участник","Леонова Милана Алексеевна","МБОУ \"Лесозаводская СШ\"",9.1,{"v":36.4,"d":"36"},"Семенова Ольга Сергеевна"]
["участник","Тихонова марьяна владимировна","МБОУ \"Коношская СШ имени Н.П. Лавёрова\"",9,36,"Шубина Елена Борисовна"]
["участник","Стоянова Кристина Игоревна","МБОУ \"Подюжская СШ им. В.А. Абрамова\"",9,36,"Краева Е.П."]
["участник","Ершова Даша Евгеньевна","МБОУ \"Коношская СШ имени Н.П. Лавёрова\"",8.4,{"v":33.6,"d":"34"},"Шубина Елена Борисовна"]
["участник","Сибирякова Полина Алексеевна","МБОУ \"Ерцевская СШ им. С.И. Бочарова\"",8.4,{"v":33.6,"d":"34"},"Рубайло О.А."]
["участник","Куклинова Марьяна Сергеевна","МБОУ \"Подюжская СШ им. В.А. Абрамова\"",8,32,"Краева Е.П."]
["участник","Шахова Аоина Алексееевна","МБОУ \"Климовская СШ\"",7.8,{"v":31.2,"d":"31"},"Котова Н.С."]
["участник","Денисова Ева Евгеньевна","МБОУ \"Ерцевская СШ им. С.И. Бочарова\"",7.7,{"v":30.8,"d":"31"},"Рубайло О.А."]
["участник","Серебряков Владислав Андреевич","МБОУ \"Ерцевская СШ им. С.И. Бочарова\"",7.7,{"v":30.8,"d":"31"},"Рубайло О.А."]
["участник","Поросенкова Ксения Сергеевна","МБОУ \"Ерцевская СШ им. С.И. Бочарова\"",7.5,30,"Рубайло О.А."]
["участник","Щербина Алина Владимировна","МБОУ \"Ерцевская СШ им. С.И. Бочарова\"",7.2,{"v":28.8,"d":"29"},"Рубайло О.А."]
["участник","Лукаш анна павловна","МБОУ \"Коношская СШ имени Н.П. Лавёрова\"",7,28,"Шубина Елена Борисовна"]
["участник","Порохина Наталья Сергеевна","МБОУ \"Подюжская СШ им. В.А. Абрамова\"",7,28,"Краева Е.П."]
["участник","Саримсаков Ходжиакбар Салимович","МБОУ \"Коношская СШ имени Н.П. Лавёрова\"",6.7,{"v":26.8,"d":"27"},"Шубина Елена Борисовна"]
["участник","Свинчаткин Юрий Евгеньевич","МБОУ \"Коношская СШ имени Н.П. Лавёрова\"",6.7,{"v":26.8,"d":"27"},"Шубина Елена Борисовна"]
["участник","Пальчиков Александр Андреевич","МБОУ \"Ерцевская СШ им. С.И. Бочарова\"",6.7,{"v":26.8,"d":"27"},"Рубайло О.А."]
["участник","Артёмова Ева Дмитриевна","МБОУ \"Коношская СШ имени Н.П. Лавёрова\"",6.5,26,"Носарева Татьяна Юрьевна"]
["участник","Колесникова Вера Евгеньевна","МБОУ \"Ерцевская СШ им. С.И. Бочарова\"",4.7,{"v":18.8,"d":"19"},"Рубайло О.А."]
["участник","Сметанин Максим Олегович","МБОУ \"Ерцевская СШ им. С.И. Бочарова\"",4.4,{"v":17.6,"d":"18"},"Рубайло О.А."]
["участник","Малозёмова Елизавета Викторовна","МБОУ \"Коношская СШ имени Н.П. Лавёрова\"",0,0,"Шубина Елена Борисовна"]

{"sheet":"7 класс","index":2,"n_rows":45,"n_cols":8,"rows_kept":45,"merged":[[0,1,0,3]]}
[null,"7 класс биология (школьный этап)",{"$nulls":3},"макс кол-во баллов ",null,30]
[null,"ФАМИЛИЯ Имя и Отчество участника","школа ","баллы","%","ФИО учителя"]
["победитель","Мельникова Алина Андреевна","МБОУ \"Коношская СШ имени Н.П. Лавёрова\"",19.1,{"$f":"D3*100/30","v":{"v":63.66666666666667,"d":"64"}},"Шубина Елена Борисовна"]
["призер","Пихтина София Алексеевна","МБОУ \"Тавреньгская СШ\"",19,{"$f":"D4*100/30","v":{"v":63.333333333333336,"d":"63"}},"Седых Н. В. "]
["призер","Шихов Матвей Владимирович","МБОУ \"Коношеозерская СШ им. В.А.Корытова\"",18.8,{"v":62.666666666666664,"d":"63"},"Марчук Л.В."]
["призер","Полозова Карина Алексеевна","МБОУ \"Коношеозерская СШ им. В.А.Корытова\"",18.3,61,"Марчук Л.В."]
["призер","Костыльцев Валкрий Евгеньевич","МБОУ \"Коношская СШ имени Н.П. Лавёрова\"",17.3,{"v":57.666666666666664,"d":"58"},"Шубина Елена Борисовна"]
["призер","Шубин Руслан Алексеевич","МБОУ \"Коношская СШ имени Н.П. Лавёрова\"",17.3,{"v":57.666666666666664,"d":"58"},"Шубина Елена Борисовна"]
["призер","Грахов Арсений Артёмович","МБОУ \"Коношская СШ имени Н.П. Лавёрова\"",17,{"v":56.666666666666664,"d":"57"},"Шубина Елена Борисовна"]
["призер","Кузнецов Даниил Александрович","МБОУ \"Коношская СШ имени Н.П. Лавёрова\"",17,{"v":56.666666666666664,"d":"57"},"Шубина Елена Борисовна"]
["призер","Филин Денис Сергеевич","МБОУ \"Коношская СШ имени Н.П. Лавёрова\"",16.6,{"v":55.33333333333334,"d":"55"},"Шубина Елена Борисовна"]
["призер","Орлов Андрей Адександрович","МБОУ \"Тавреньгская СШ\"",15.8,{"v":52.666666666666664,"d":"53"},"Седых Н. В. "]
["призер","Орлова Ольга Александровна","МБОУ \"Подюжская СШ им. В.А. Абрамова\"",15.2,{"v":50.666666666666664,"d":"51"},"Краева Е.П."]
["призер","Фомина Полина Александровна","МБОУ \"Коношская СШ имени Н.П. Лавёрова\"",15.1,{"v":50.333333333333336,"d":"50"},"Шубина Елена Борисовна"]
["призер","Щенников Семён Павлович","МБОУ \"Коношская СШ имени Н.П. Лавёрова\"",14.8,{"v":49.333333333333336,"d":"49"},"Шубина Елена Борисовна"]
["призер","наумов марк александрович","МБОУ \"Коношская СШ имени Н.П. Лавёрова\"",14.8,{"v":49.333333333333336,"d":"49"},"Шубина Елена Борисовна"]
["призер","Костелова Дарья Ивановна","МБОУ \"Коношская СШ имени Н.П. Лавёрова\"",14.1,47,"Шубина Елена Борисовна"]
["призер","Новгородова Виталина Алексеевна","МБОУ \"Коношская СШ имени Н.П. Лавёрова\"",14,{"v":46.666666666666664,"d":"47"},"Шубина Елена Борисовна"]
["участник","Красильникова Дарья Юрьевна","МБОУ \"Вохтомская ОШ\"",13.8,46,"Артемова Н.П."]
["участник","Веселкова Марина Александровна","МБОУ \"Коношская СШ имени Н.П. Лавёрова\"",13.1,{"v":43.666666666666664,"d":"44"},"Шубина Елена Борисовна"]
["участник","Константинов Павел Леонидович","МБОУ \"Вохтомская ОШ\"",12.8,{"v":42.666666666666664,"d":"43"},"Артемова Н.П."]
["участник","Калинина Полина Алексеевна","МБОУ \"Коношская СШ имени Н.П. Лавёрова\"",12.5,{"v":41.666666666666664,"d":"42"},"Шубина Елена Борисовна"]
["участник","Руссу Дарина Руслановна","МБОУ \"Ерцевская СШ им. С.И. Бочарова\"",12.5,{"v":41.666666666666664,"d":"42"},"Рубайло О.А."]
["участник","Рудаков Максим Иванович","МБОУ \"Вохтомская ОШ\"",12.5,{"v":41.666666666666664,"d":"42"},"Артемова Н.П."]
["участник","Топоров Арсений Григорьевич","МБОУ \"Лесозаводская СШ\"",12.4,{"v":41.333333333333336,"d":"41"},"Голубева Марина Владимировна"]
["участник","Филиппова Татьяна Дмитриевна","МБОУ \"Коношеозерская СШ им. В.А.Корытова\"",12,40,"Марчук Л.В."]
["участник","Продан Савелий Александрович","МБОУ \"Коношская СШ имени Н.П. Лавёрова\"",11.8,{"v":39.333333333333336,"d":"39"},"Шубина Елена Борисовна"]
["участник","Беляева Екатерина Максимовна","МБОУ \"Лесозаводская СШ\"",11.8,{"v":39.333333333333336,"d":"39"},"Голубева Марина Владимировна"]
["участник","Ноговицин Артем Дмитриевич","МБОУ \"Подюжская СШ им. В.А. Абрамова\"",11.8,{"v":39.333333333333336,"d":"39"},"Краева Е.П."]
["участник","Патракеев Александр Дмитриевич","МБОУ \"Лесозаводская СШ\"",11.5,{"v":38.333333333333336,"d":"38"},"Голубева Марина Владимировна"]
["участник","Силичева Варвара Дмитриевна","МБОУ \"Ерцевская СШ им. С.И. Бочарова\"",11.4,38,"Рубайло О.А."]
["участник","Малышкина Алиса Юрьевна","МБОУ \"Ерцевская СШ им. С.И. Бочарова\"",11.4,38,"Рубайло О.А."]
["участник","Черных Таисия Александровна","МБОУ \"Коношская СШ имени Н.П. Лавёрова\"",11.1,37,"Шубина Елена Борисовна"]
["участник","Лысова Елизавета Юрьевна","МБОУ \"Коношеозерская СШ им. В.А.Корытова\"",11.1,37,"Марчук Л.В."]
["участник","Лобанова Анастасия Николаевна","МБОУ \"Климовская СШ\"",11,{"v":36.666666666666664,"d":"37"},"Котова Н.С."]
["участник","Филиппова Дарья Дмитриевна","МБОУ \"Коношеозерская СШ им. В.А.Корытова\"",10.5,35,"Марчук Л.В."]
["участник","Рябов Дмитрий Алекспндрович","МБОУ \"Тавреньгская СШ\"",10.4,{"v":34.666666666666664,"d":"35"},"Седых Н. В. "]
["участник","Вараксина Альбина Александровна ","МБОУ \"Коношская ОШ\"",8.6,{"v":28.666666666666668,"d":"29"},"Вараксина Ю.А."]
["участник","Патокова Вероника Сергеевна","МБОУ \"Коношская СШ имени Н.П. Лавёрова\"",8.5,{"v":28.333333333333332,"d":"28"},"Шубина Елена Борисовна"]
["участник","киселёва полина павловна","МБОУ \"Коношская СШ имени Н.П. Лавёрова\"",8.5,{"v":28.333333333333332,"d":"28"},"Шубина Елена Борисовна"]
["участник","Вишнякова Эвелина Александровна","МБОУ \"Лесозаводская СШ\"",8.1,27,"Голубева Марина Владимировна"]
["участник","Захаров Кирилл Евгеньевич","МБОУ \"Коношская СШ имени Н.П. Лавёрова\"",7.2,24,"Шубина Елена Борисовна"]
["участник","Сиделёва Василиса Александровна","МБОУ \"Лесозаводская СШ\"",7.2,24,"Голубева Марина Владимировна"]
["участник","Гандзий Иоланта Николаевна","МБОУ \"Вохтомская ОШ\"",6.4,{"v":21.333333333333332,"d":"21"},"Артемова Н.П."]
["участник","Хохлов Данил Михайлович","МБОУ \"Коношеозерская СШ им. В.А.Корытова\"",3.3,11,"Марчук Л.В."]

{"sheet":"8 класс","index":3,"n_rows":53,"n_cols":8,"rows_kept":53}
[]
[null,"Фамилия Имя и Отчество участника","школа ","баллы","%","ФИО учителя","макс кол-во баллов ",33]
["победитель","Жилин Владимир Александрович","МБОУ \"Коношская СШ имени Н.П. Лавёрова\"",23.6,{"$f":"D3*100/33","v":{"v":71.51515151515152,"d":"72"}},"Носарева Татьяна Юрьевна"]
["призер","Мишутина Милена Вячеславовна","МБОУ \"Коношская СШ имени Н.П. Лавёрова\"",20.6,{"$f":"D4*100/33","v":{"v":62.42424242424242,"d":"62"}},"Носарева Татьяна Юрьевна"]
["призер","Румянцев Илья Владимирович","МБОУ \"Коношская СШ имени Н.П. Лавёрова\"",19.8,60,"Носарева Татьяна Юрьевна"]
["призер","Сухнева Юлия Николаевна","МБОУ \"Ерцевская СШ им. С.И. Бочарова\"",19,{"v":57.57575757575758,"d":"58"},"Рюмин А.М."]
["призер","Ковтун Карина Александровна","МБОУ \"Коношская СШ имени Н.П. Лавёрова\"",18.8,{"v":56.96969696969697,"d":"57"},"Носарева Татьяна Юрьевна"]
["призер","Седалина Екатерина Александровна","МБОУ \"Ерцевская СШ им. С.И. Бочарова\"",18.3,{"v":55.45454545454545,"d":"55"},"Рюмин А.М."]
["призер","Лопатина Варвара Викторовна","МБОУ \"Ерцевская СШ им. С.И. Бочарова\"",17.3,{"v":52.42424242424242,"d":"52"},"Рюмин А.М."]
["призер","Григорова Екатерина Михайловна","МБОУ \"Коношская СШ имени Н.П. Лавёрова\"",16.5,50,"Носарева Татьяна Юрьевна"]
["призер","Горюшкина Маргарита Денисовна","МБОУ \"Коношская СШ имени Н.П. Лавёрова\"",16.3,{"v":49.39393939393939,"d":"49"},"Носарева Татьяна Юрьевна"]
["призер","Носков Тимур Владиславович","МБОУ \"Коношеозерская СШ им. В.А.Корытова\"",16.3,{"v":49.39393939393939,"d":"49"},"Марчук Л.В."]
["призер","Симановский Дмитрий Александрович","МБОУ \"Коношская СШ имени Н.П. Лавёрова\"",15.9,{"v":48.18181818181818,"d":"48"},"Носарева Татьяна Юрьевна"]
["призер","Павлов Илья Александроаич","МБОУ \"Коношская СШ имени Н.П. Лавёрова\"",15.8,{"v":47.878787878787875,"d":"48"},"Носарева Татьяна Юрьевна"]
["призер","Баранова Диана Дмитриевна","МБОУ \"Лесозаводская СШ\"",15.6,{"v":47.27272727272727,"d":"47"},"Карелина Алена Валерьевна"]
["призер","Долинова Ксения Максимовна","МБОУ \"Коношская СШ имени Н.П. Лавёрова\"",15.1,{"v":45.75757575757576,"d":"46"},"Носарева Татьяна Юрьевна"]
["призер","Калинина Екатерина Алексеевна","МБОУ \"Тавреньгская СШ\"",15,{"v":45.45454545454545,"d":"45"},"Верещагина А. А. "]
["призер","Саримсаков Мухаммад Юсуф Салимович","МБОУ \"Коношская СШ имени Н.П. Лавёрова\"",14.8,{"v":44.84848484848485,"d":"45"},"Носарева Татьяна Юрьевна"]
["призер","Ершова анастасия сергеевна","МБОУ \"Коношская СШ имени Н.П. Лавёрова\"",14.8,{"v":44.84848484848485,"d":"45"},"Носарева Татьяна Юрьевна"]
["участник","Смирнова Софья Андреевна","МБОУ \"Коношская СШ имени Н.П. Лавёрова\"",14.6,{"v":44.24242424242424,"d":"44"},"Носарева Татьяна Юрьевна"]
["участник","Корнейчук Ульяна Михайловна","МБОУ \"Коношская СШ имени Н.П. Лавёрова\"",14.4,{"v":43.63636363636363,"d":"44"},"Носарева Татьяна Юрьевна"]
["участник","Данилова Дарья Анатольевна","МБОУ \"Лесозаводская СШ\"",14,{"v":42.42424242424242,"d":"42"},"Карелина Алена Валерьевна"]
["участник","Курашова Диана Сергеевна","МБОУ \"Тавреньгская СШ\"",13.5,{"v":40.90909090909091,"d":"41"},"Верещагина А. А. "]
["участник","Григорьева Ксения Евгеньевна","МБОУ \"Коношская СШ имени Н.П. Лавёрова\"",13.4,{"v":40.60606060606061,"d":"41"},"Носарева Татьяна Юрьевна"]
["участник","Арабаджи Даниил Андреевич","МБОУ \"Лесозаводская СШ\"",13.4,{"v":40.60606060606061,"d":"41"},"Карелина Алена Валерьевна"]
["участник","Бобров Ярослав Владимирович","МБОУ \"Лесозаводская СШ\"",13.3,{"v":40.303030303030305,"d":"40"},"Карелина Алена Валерьевна"]
["участник","Анфимова Валерия Александровна","МБОУ \"Коношская СШ имени Н.П. Лавёрова\"",12.8,{"v":38.78787878787879,"d":"39"},"Носарева Татьяна Юрьевна"]
["участник","Кокачев Климентий Васильевич","МБОУ \"Коношская СШ имени Н.П. Лавёрова\"",12.8,{"v":38.78787878787879,"d":"39"},"Носарева Татьяна Юрьевна"]
["участник","Шаманова Маргарита Александровна","МБОУ \"Лесозаводская СШ\"",12.5,{"v":37.878787878787875,"d":"38"},"Карелина Алена Валерьевна"]
["участник","Брыкалова Мария Алексеевна","МБОУ \"Лесозаводская СШ\"",12.5,{"v":37.878787878787875,"d":"38"},"Карелина Алена Валерьевна"]
["участник","Ахметшин Руслан Наильевич","МБОУ \"Лесозаводская СШ\"",12.4,{"v":37.57575757575758,"d":"38"},"Карелина Алена Валерьевна"]
["участник","Ивашко Павел Сергеевич","МБОУ \"Лесозаводская СШ\"",12,{"v":36.36363636363637,"d":"36"},"Карелина Алена Валерьевна"]
["участник","Патракеев Александр Дмитриевич","МБОУ \"Лесозаводская СШ\"",11.6,{"v":35.15151515151515,"d":"35"},"Карелина Алена Валерьевна"]
["участник","Козенкова софья сергеевна","МБОУ \"Коношская СШ имени Н.П. Лавёрова\"",11.5,{"v":34.84848484848485,"d":"35"},"Носарева Татьяна Юрьевна"]
["участник","Лучкинская Елена Владимировна","МБОУ \"Коношская СШ имени Н.П. Лавёрова\"",11.3,{"v":34.24242424242424,"d":"34"},"Носарева Татьяна Юрьевна"]
["участник","Тухватчин Алексей Романович","МБОУ \"Подюжская СШ им. В.А. Абрамова\"",11.2,{"v":33.93939393939394,"d":"34"},"Трофименко Л.Б."]
["участник","Буянов Арсений Сергеевич","МБОУ \"Подюжская СШ им. В.А. Абрамова\"",11.2,{"v":33.93939393939394,"d":"34"},"Трофименко Л.Б."]
["участник","Буторина Софья Александровна","МБОУ \"Коношская СШ имени Н.П. Лавёрова\"",11,{"v":33.333333333333336,"d":"33"},"Носарева Татьяна Юрьевна"]
["участник","Молева Ульяна Андреевна","МБОУ \"Коношская СШ имени Н.П. Лавёрова\"",11,{"v":33.333333333333336,"d":"33"},"Носарева Татьяна Юрьевна"]
["участник","Шушерин Никита Михайлович","МБОУ \"Коношская СШ имени Н.П. Лавёрова\"",10.8,{"v":32.72727272727273,"d":"33"},"Носарева Татьяна Юрьевна"]
["участник","Оборин Даниил Андреевич","МБОУ \"Лесозаводская СШ\"",10.5,{"v":31.818181818181817,"d":"32"},"Карелина Алена Валерьевна"]
["участник","Лобанова Полина Андреевна","МБОУ \"Климовская СШ\"",10.3,{"v":31.21212121212121,"d":"31"},"Котова Н.С."]
["участник","Анфимова Елизавета Александровна","МБОУ \"Коношская СШ имени Н.П. Лавёрова\"",9.5,{"v":28.78787878787879,"d":"29"},"Носарева Татьяна Юрьевна"]
["участник","Куликова Милана Алексеевна","МБОУ \"Лесозаводская СШ\"",9.3,{"v":28.181818181818187,"d":"28"},"Карелина Алена Валерьевна"]
["участник","Ожигин Максим Владимирович","МБОУ \"Коношеозерская СШ им. В.А.Корытова\"",8.9,{"v":26.96969696969697,"d":"27"},"Марчук Л.В."]
["участник","Николайчик Тимофей Тимурович","МБОУ \"Коношская СШ имени Н.П. Лавёрова\"",8.1,{"v":24.545454545454547,"d":"25"},"Носарева Татьяна Юрьевна"]
["участник","Шевлякова Варвара Николаевна","МБОУ \"Лесозаводская СШ\"",7.7,{"v":23.333333333333332,"d":"23"},"Карелина Алена Валерьевна"]
["участник","Миронова Полина Николаевна","МБОУ \"Лесозаводская СШ\"",7.3,{"v":22.12121212121212,"d":"22"},"Карелина Алена Валерьевна"]
["участник","Винцевич Даша Александровна","МБОУ \"Коношская СШ имени Н.П. Лавёрова\"",6.9,{"v":20.90909090909091,"d":"21"},"Носарева Татьяна Юрьевна"]
["участник","Тарбаев Никита Сергеевич","МБОУ \"Подюжская СШ им. В.А. Абрамова\"",6.9,{"v":20.90909090909091,"d":"21"},"Трофименко Л.Б."]
["участник","Камададзе Майя Мамуковна","МБОУ \"Лесозаводская СШ\"",6.5,{"v":19.696969696969695,"d":"20"},"Карелина Алена Валерьевна"]
["участник","Михеева Влада Васильевна","МБОУ \"Климовская СШ\"",5.9,{"v":17.87878787878788,"d":"18"},"Котова Н.С."]
[null,"Матюнин Роман Владимирович","МБОУ \"Вохтомская ОШ\" СП \"Волошская ОШ\"",14.5,44,"Ильина Г.А."]

{"sheet":"9 класс","index":4,"n_rows":28,"n_cols":8,"rows_kept":28,"merged":[[0,1,0,3]]}
[null,"9 класс биология (школьный этап)"]
[null,"Фамилия Имя и Отчество участника","школа ","баллы","%","ФИО учителя","макс кол-во баллов ",56]
["победитель","Ветошкина Эвелина Андреевна","МБОУ \"Коношская СШ имени Н.П. Лавёрова\"",41.6,{"$f":"D3*100/56","v":{"v":74.28571428571429,"d":"74"}},"Носарева Татьяна Юрьевна"]
["призер","Шалагина Наталья Андреевна","МБОУ \"Коношская СШ имени Н.П. Лавёрова\"",41.6,{"$f":"D4*100/56","v":{"v":74.28571428571429,"d":"74"}},"Носарева Татьяна Юрьевна"]
["призер","Грязнухин Илья Алексеевич","МБОУ \"Коношеозерская СШ им. В.А.Корытова\"",40,{"v":71.42857142857143,"d":"71"},"Марчук Л.В."]
["призер","Смирнова Милана Сергеевна","МБОУ \"Лесозаводская СШ\"",33.3,{"v":59.46428571428571,"d":"59"},"Карелина Алена Валерьевна"]
["призер","Дьячкова Алина Андреевна","МБОУ \"Коношская СШ имени Н.П. Лавёрова\"",29.6,{"v":52.857142857142854,"d":"53"},"Носарева Татьяна Юрьевна"]
["призер","Козенкова Надежда Сергеевна","МБОУ \"Коношская СШ имени Н.П. Лавёрова\"",29.6,{"v":52.857142857142854,"d":"53"},"Носарева Татьяна Юрьевна"]
["призер","Страшненкова София Александровна","МБОУ \"Подюжская СШ им. В.А. Абрамова\"",29,{"v":51.785714285714285,"d":"52"},"Трофименко Л.Б."]
["призер","Вокуева Елизавета Дмитриевна","МБОУ \"Коношская СШ имени Н.П. Лавёрова\"",27.3,{"v":48.75,"d":"49"},"Носарева Татьяна Юрьевна"]
["призер","Анисимова Валерия Артуровна","МБОУ \"Лесозаводская СШ\"",26.9,{"v":48.035714285714285,"d":"48"},"Карелина Алена Валерьевна"]
["участник","Верещагина Юлия Сергеевна","МБОУ \"Лесозаводская СШ\"",23.6,{"v":42.142857142857146,"d":"42"},"Карелина Алена Валерьевна"]
["участник","Мальцева Ольга Евгеньевна","МБОУ \"Лесозаводская СШ\"",23.3,{"v":41.607142857142854,"d":"42"},"Карелина Алена Валерьевна"]
["участник","Прибытков Николай Александрович ","МБОУ \"Коношская ОШ\"",21.8,{"v":38.92857142857143,"d":"39"},"Варксина Ю.А."]
["участник","Витков Максим Сергеевич","МБОУ \"Лесозаводская СШ\"",21.7,{"v":38.75,"d":"39"},"Карелина Алена Валерьевна"]
["участник","Шабунина Владислава Сергеевна","МБОУ \"Коношская СШ имени Н.П. Лавёрова\"",20.3,{"v":36.25,"d":"36"},"Носарева Татьяна Юрьевна"]
["участник","Короткевич Елена Витальевна ","МБОУ \"Коношская ОШ\"",19.9,{"v":35.535714285714285,"d":"36"},"Варксина Ю.А."]
["участник","Клименко Юлия Павловна","МБОУ \"Коношская СШ имени Н.П. Лавёрова\"",19.3,{"v":34.464285714285715,"d":"34"},"Шубина Елена Борисовна"]
["участник","Козорезова Анна Алексеевна","МБОУ \"Лесозаводская СШ\"",18.6,{"v":33.214285714285715,"d":"33"},"Карелина Алена Валерьевна"]
["участник","Аллахвердиева Диана Рафиковна","МБОУ \"Коношеозерская СШ им. В.А.Корытова\"",17.1,{"v":30.53571428571429,"d":"31"},"Марчук Л.В."]
["участник","Александрова Ярослава Артуровна","МБОУ \"Лесозаводская СШ\"",16.7,{"v":29.821428571428573,"d":"30"},"Карелина Алена Валерьевна"]
["участник","Колбина Валерия Владимировна","МБОУ \"Лесозаводская СШ\"",15.6,{"v":27.857142857142858,"d":"28"},"Карелина Алена Валерьевна"]
["участник","Абакумов Богдан Викторович","МБОУ \"Коношеозерская СШ им. В.А.Корытова\"",15.5,{"v":27.678571428571427,"d":"28"},"Марчук Л.В."]
["участник","Бобарыкин Даниил Юрьевич","МБОУ \"Коношская СШ имени Н.П. Лавёрова\"",15.1,{"v":26.964285714285715,"d":"27"},"Шубина Елена Борисовна"]
["участник","Алифханова Ольга Айдемировна","МБОУ \"Коношская СШ имени Н.П. Лавёрова\"",15,{"v":26.785714285714285,"d":"27"},"Шубина Елена Борисовна"]
["участник","Ракитина Дарья Владимировна","МБОУ \"Лесозаводская СШ\"",14.9,{"v":26.607142857142858,"d":"27"},"Карелина Алена Валерьевна"]
["участник","Савонин Константин Денисович","МБОУ \"Коношеозерская СШ им. В.А.Корытова\"",10.5,{"v":18.75,"d":"19"},"Марчук Л.В.",56]
["участник","Мачула Анна Руслановна","МБОУ \"Коношеозерская СШ им. В.А.Корытова\"",9,{"v":16.071428571428573,"d":"16"},"Марчук Л.В.",56]

{"sheet":"10 класс","index":5,"n_rows":29,"n_cols":8,"rows_kept":29,"merged":[[0,1,0,3]]}
[null,"10 класс биология (школьный этап)"]
[null,"Фамилия Имя и Отчество участника","школа ","баллы","%","ФИО учителя","макс кол-во баллов ",63]
["победитель","Баруткина Анастасия Николаевна","МБОУ \"Коношская СШ имени Н.П. Лавёрова\"",55.2,{"$f":"D3*100/63","v":{"v":87.61904761904762,"d":"88"}},"Шубина Елена Борисовна"]
["победите","Кусочкина Ксения Сергеевна","МБОУ \"Коношская СШ имени Н.П. Лавёрова\"",55.2,{"v":87.61904761904762,"d":"88"},"Шубина Елена Борисовна"]
["призер","Шумихина Варвара Сергеевна","МБОУ \"Коношская СШ имени Н.П. Лавёрова\"",53.5,{"v":84.92063492063492,"d":"85"},"Шубина Елена Борисовна"]
["призер","Лукаш Анастасия Павловна","МБОУ \"Коношская СШ имени Н.П. Лавёрова\"",51.2,{"v":81.26984126984127,"d":"81"},"Шубина Елена Борисовна"]
["призер","Вохтомина Анастасия Николаевна","МБОУ \"Коношская СШ имени Н.П. Лавёрова\"",49.7,{"v":78.88888888888889,"d":"79"},"Шубина Елена Борисовна"]
["призер","Чиханова Полина Александровна","МБОУ \"Коношская СШ имени Н.П. Лавёрова\"",48.7,{"v":77.3015873015873,"d":"77"},"Шубина Елена Борисовна"]
["призер","Булдаков Вадим Николаевич","МБОУ \"Коношская СШ имени Н.П. Лавёрова\"",47.8,{"v":75.87301587301587,"d":"76"},"Шубина Елена Борисовна"]
["призер","Прокушина Софья Витальевна","МБОУ \"Коношская СШ имени Н.П. Лавёрова\"",47.7,{"v":75.71428571428571,"d":"76"},"Шубина Елена Борисовна"]
["призер","Мальцева Алина Викторовна","МБОУ \"Коношская СШ имени Н.П. Лавёрова\"",45,{"v":71.42857142857143,"d":"71"},"Шубина Елена Борисовна"]
["призер","Саримсакова Сумайя Салимовна","МБОУ \"Коношская СШ имени Н.П. Лавёрова\"",43.1,{"v":68.41269841269842,"d":"68"},"Шубина Елена Борисовна"]
["призер","Селезнев Матвей Михайлович","МБОУ \"Коношская СШ имени Н.П. Лавёрова\"",40.5,{"v":64.28571428571429,"d":"64"},"Шубина Елена Борисовна"]
["призер","Решетникова Елизавета Владимировна","МБОУ \"Коношская СШ имени Н.П. Лавёрова\"",37.3,{"v":59.2063492063492,"d":"59"},"Шубина Елена Борисовна"]
["призер","Горчакова Алёна Александровна","МБОУ \"Лесозаводская СШ\"",32.3,{"$f":"D15/50*100","v":{"v":64.6,"d":"65"}},"Голубева Марина Владимировна"]
["призер","Семихин Матвей Евгеньевич","МБОУ \"Коношская СШ имени Н.П. Лавёрова\"",31.3,{"$f":"D16*100/63","v":{"v":49.682539682539684,"d":"50"}},"Шубина Елена Борисовна"]
["призер","Тухватчина Евгения Романовна","МБОУ \"Подюжская СШ им. В.А. Абрамова\"",29.5,{"$f":"D17*100/63","v":{"v":46.82539682539682,"d":"47"}},"Трофименко Л.Б."]
["призер","Земцовский Владислав Максимович","МБОУ \"Коношская СШ имени Н.П. Лавёрова\"",28.6,{"$f":"D18*100/63","v":{"v":45.3968253968254,"d":"45"}},"Шубина Елена Борисовна"]
["участник","Романцев Егор Николаевич","МБОУ \"Тавреньгская СШ\"",{"v":25.1,"d":"25"},{"$f":"D19*100/63","v":{"v":39.84126984126984,"d":"40"}},"Верещагина А. А. "]
["участник","Вяткин Матвей Дмитриевич","МБОУ \"Подюжская СШ им. В.А. Абрамова\"",23.6,{"$f":"D20*100/63","v":{"v":37.46031746031746,"d":"37"}},"Трофименко Л.Б."]
["участник","Бурлака Алиса Алексеевна","МБОУ \"Лесозаводская СШ\"",22.8,{"$f":"D21/63*100","v":{"v":36.19047619047619,"d":"36"}},"Голубева Марина Владимировна"]
["участник","Терёхина Карина Евгеньевна","МБОУ \"Коношеозерская СШ им. В.А.Корытова\"",20.8,{"$f":"D22*100/63","v":{"v":33.01587301587302,"d":"33"}},"Марчук Л.В."]
["участник","Вершинин Никита Михайлович","МБОУ \"Коношеозерская СШ им. В.А.Корытова\"",19.6,{"$f":"D23*100/63","v":{"v":31.111111111111114,"d":"31"}},"Марчук Л.В."]
["участник","Игнатова Марина Валентиновна","МБОУ \"Тавреньгская СШ\"",19.6,{"$f":"D24*100/63","v":{"v":31.111111111111114,"d":"31"}},"Верещагина А. А. "]
["участник","Юрина Виктория Алексеевна","МБОУ \"Коношская СШ имени Н.П. Лавёрова\"",17.1,{"$f":"D25*100/63","v":{"v":27.142857142857146,"d":"27"}},"Шубина Елена Борисовна"]
["участник","Колесникович Карина Александровна","МБОУ \"Коношеозерская СШ им. В.А.Корытова\"",16.1,{"$f":"D26*100/63","v":{"v":25.55555555555556,"d":"26"}},"Марчук Л.В."]
["участник","Шахов Никита Алексеевич","МБОУ \"Климовская СШ\"",15.6,25,"Котова Н.С."]
["участник","Юрьева Ксения Васильевна","МБОУ \"Коношская СШ имени Н.П. Лавёрова\"",12.5,{"$f":"D28*100/63","v":{"v":19.841269841269842,"d":"20"}},"Шубина Елена Борисовна"]
["участник","Журавлев Юрий Олегович","МБОУ \"Коношеозерская СШ им. В.А.Корытова\"",5.5,{"$f":"D29*100/63","v":{"v":8.73015873015873,"d":"9"}},"Марчук Л.В."]

{"sheet":"11 класс","index":6,"n_rows":9,"n_cols":8,"rows_kept":9,"merged":[[0,1,0,3]]}
[null,"11 класс биология (школьный этап)"]
[null,"Фамилия Имя и Отчество участника","школа ","баллы","%","ФИО учителя","макс кол-во баллов ",70]
["победитель","Долгоносова Татьяна Сергеевна","МБОУ \"Коношская СШ имени Н.П. Лавёрова\"",53.7,{"$f":"D3*100/70","v":{"v":76.71428571428571,"d":"77"}},"Носарева Татьяна Юрьевна"]
["призер","Тюкачев Артем Александрович","МБОУ \"Лесозаводская СШ\"",35.3,{"v":50.42857142857142,"d":"50"},"Голубева Марина Владимировна"]
["призер","Ручьева Елена Витальевна","МБОУ \"Коношская СШ имени Н.П. Лавёрова\"",31.8,{"v":45.42857142857143,"d":"45"},"Носарева Татьяна Юрьевна"]
["участник","Васильева Алёна Алексеевна","МБОУ \"Коношская СШ имени Н.П. Лавёрова\"",29,{"v":41.42857142857143,"d":"41"},"Носарева Татьяна Юрьевна"]
["участник","Бескровная Полина Сергеевна","МБОУ \"Ерцевская СШ им. С.И. Бочарова\"",22,{"v":31.428571428571427,"d":"31"},"Рубайло О.А."]
["участник","Старцева Екатерина Вячеславовна","МБОУ \"Коношеозерская СШ им. В.А.Корытова\"",14,20,"Марчук Л.В."]
["участник","Валуевич Арина Алексеевна","МБОУ \"Ерцевская СШ им. С.И. Бочарова\"",10,{"v":14.285714285714286,"d":"14"},"Рубайло О.А."]